bitfinex-derivatives/quotes_ETHF0:USTF0_20220103
["timestamp","ask_amount","ask_price","bid_price","bid_amount"]
[1641196936239,2.00479,3811.1,3810.9,1.40901322]
[1641196936441,2.00479,3811.1,3810.9,1.17902222]
[1641196940259,2.00479,3811.1,3810.4,1.76194351]
[1641196940856,2.00479,3811.1,3810.5,0.51766268]
[1641196941256,2.00479,3810.6,3810.5,0.51766268]
[1641196942457,2.00479,3810.6,3810.2,0.51766268]
[1641196942857,2.00479,3810.6,3810.5,0.51766268]
[1641196943259,2.00479,3810.6,3810.2,0.51766268]
[1641196943457,2.00479,3810.6,3810.5,0.51766268]
[1641196943861,2.00479,3810.6,3810.3,0.51766268]
[1641196944060,2.00479,3810.6,3810.5,0.51766268]
[1641196944259,2.00479,3810.6,3810.4,0.74765368]
[1641196944461,2.00479,3810.6,3810.4,0.51766268]
[1641196944661,2.00479,3810.6,3810.5,0.51766268]
[1641196945164,2.00479,3810.6,3810.2,0.51766268]
[1641196946163,2.00479,3810.6,3810.2,2.27960619]
[1641196946765,2.00479,3810.6,3810.3,0.51766268]
[1641196947669,2.00479,3810.6,3810.2,0.51766268]
[1641196947867,2.00479,3810.6,3810.4,0.51766268]
[1641196948067,2.00479,3810.6,3810.3,0.51766268]
[1641196948366,2.00479,3810.6,3810.5,0.51766268]
[1641196948669,2.00479,3810.6,3810.4,0.51766268]
[1641196948967,2.00479,3810.6,3810.3,0.51766268]
[1641196949167,0.128157,3811.2,3810.5,0.51766268]
[1641196949567,2.00479,3810.6,3810.5,0.51766268]
[1641196949769,2.00479,3810.6,3810.4,2.27960619]
[1641196950170,2.00479,3810.6,3810.5,0.51766268]
[1641196953372,2.00479,3811.0,3810.5,0.74765368]
[1641196953773,1.18956839,3811.1,3810.5,2.75244368]
[1641196954174,1.18956839,3811.2,3810.5,4.51438719]
[1641196954572,1.18956839,3811.2,3810.6,0.51766268]
[1641196955972,0.11350053,3811.3,3810.7,1.76194351]
[1641196956572,0.11350053,3811.3,3810.8,0.51766268]
[1641196956773,0.24165753,3811.3,3810.8,0.51766268]
[1641196957173,0.24165753,3811.3,3810.8,2.27960619]
[1641196957575,0.11350053,3811.3,3810.9,0.51766268]
[1641196957779,2.00479,3811.4,3810.9,1.34286268]
[1641196958674,2.00479,3811.4,3811.0,0.51766268]
[1641196961179,0.128157,3811.3,3811.0,0.51766268]
[1641196962077,2.00479,3811.4,3811.1,0.229991]
[1641196962677,2.00479,3811.4,3811.0,0.51766268]
[1641196966983,3.50469,3811.4,3810.6,2.20323933]
[1641196967185,2.00479,3811.4,3810.0,3.67179087]
[1641196967384,1.31162334,3810.5,3810.0,3.67179087]
[1641196967586,0.128157,3810.4,3810.0,3.67179087]
[1641196968586,0.128157,3810.4,3809.9,2.63261584]
[1641196968587,0.128157,3810.4,3810.1,2.63261584]
[1641196968785,0.128157,3810.4,3810.2,2.95133144]
[1641196970087,0.128157,3810.4,3810.1,2.63261584]
[1641196970285,0.89222594,3810.4,3810.2,0.229991]
[1641196970489,0.89222594,3810.4,3810.2,0.878291]
[1641196971086,2.00479,3810.6,3810.2,0.878291]
[1641196971485,0.128157,3810.7,3810.2,0.878291]
[1641196972085,0.128157,3810.7,3810.2,2.883081]
[1641196973486,0.89222594,3811.1,3810.2,2.883081]
[1641196973685,1.47861245,3811.7,3810.2,2.883081]
[1641196973686,1.47861245,3811.7,3810.4,4.47377627]
[1641196973886,1.47861245,3811.7,3810.8,1.5]
[1641196974088,1.47861245,3811.7,3811.1,2.00479]
[1641196974287,1.47861245,3811.7,3811.1,2.62599]
[1641196974587,1.47861245,3811.7,3811.2,4.197932]
[1641196975592,0.128157,3811.6,3811.2,4.197932]
[1641196977292,2.00479,3812.0,3811.2,4.197932]
[1641196977493,2.00479,3812.0,3811.2,4.958732]
[1641196977892,0.128157,3811.9,3811.2,4.958732]
[1641196978894,0.35359676,3811.9,3811.3,0.128157]
[1641196979294,0.35359676,3811.9,3811.4,4.197712]
[1641196979896,2.00479,3812.0,3811.4,4.197712]
[1641196981296,0.22543121,3811.9,3811.4,4.197712]
[1641196982293,0.22543121,3811.9,3811.5,0.60648897]
[1641196982896,2.00479,3812.0,3811.5,0.60648897]
[1641196983094,2.00479,3812.0,3811.3,0.60648897]
[1641196983299,2.00479,3812.0,3811.2,1.15789262]
[1641196983696,0.25363728,3811.9,3811.3,4.93231983]
[1641196984095,0.25363728,3811.9,3811.4,0.60645083]
[1641196984699,2.00479,3812.0,3811.4,0.60645083]
[1641196984896,2.00479,3812.0,3811.3,0.60645083]
[1641196985098,2.00479,3812.0,3811.5,0.60645083]
[1641196985596,2.00479,3812.0,3811.4,0.60645083]
[1641196985796,2.00479,3812.0,3811.3,1.17732354]
[1641196986300,2.00479,3812.0,3811.2,2.33521616]
[1641196986497,2.00479,3812.0,3811.3,0.60639509]
[1641196986901,2.00479,3812.0,3811.2,2.33521616]
[1641196987301,0.25362869,3811.9,3811.4,0.60640468]
[1641196987700,0.25362869,3811.9,3811.3,4.80411668]
[1641196988101,2.00479,3812.0,3811.3,4.80411668]
[1641196988306,2.00479,3812.0,3811.2,2.33521616]
[1641196988507,2.78899,3812.0,3811.2,1.17732354]
[1641196989510,0.2536435,3811.9,3811.1,3.18211354]
[1641196990510,1.44020928,3811.9,3811.1,2.00479]
[1641196990911,1.44020928,3811.9,3811.1,2.132947]
[1641196991311,1.44020928,3811.9,3811.2,0.60645154]
[1641196993414,0.2536435,3811.9,3811.2,0.60645154]
[1641196995215,0.88986398,3811.8,3811.4,0.88304626]
[1641196995717,0.88986398,3811.8,3811.5,0.88304626]
[1641196996515,0.88986398,3811.8,3811.4,0.88304626]
[1641196998720,2.89465398,3812.0,3811.3,0.88304626]
[1641196999921,2.89465398,3812.0,3811.1,2.00479]
[1641196999922,2.00479,3812.0,3811.1,2.00479]
[1641197000121,2.00479,3812.0,3811.2,0.128157]
[1641197000522,2.00479,3812.0,3811.2,0.73407905]
[1641197005323,2.00479,3812.0,3811.2,0.60592205]
[1641197006123,1.31125357,3811.5,3811.1,2.88783626]
[1641197007324,1.31125357,3811.5,3811.1,2.00479]
[1641197012331,1.31125357,3811.5,3811.1,2.54259]
[1641197013630,1.31125357,3811.5,3811.2,0.60646448]
[1641197014429,1.31125357,3811.5,3811.1,2.54259]
[1641197015234,1.31125357,3811.5,3811.2,0.60641411]
[1641197015631,1.31125357,3811.5,3811.3,0.229991]
[1641197018836,4.20576658,3812.0,3811.3,0.229991]
[1641197019437,3.3159026,3812.0,3811.3,0.229991]
[1641197022341,3.3159026,3812.0,3811.2,0.60642594]
[1641197029145,3.3159026,3812.0,3811.1,2.00479]
[1641197029345,3.3159026,3812.0,3811.3,0.60651798]
[1641197029544,3.3159026,3812.0,3811.3,1.15421798]
[1641197029845,3.3159026,3812.0,3811.3,0.5477]
[1641197030147,3.3159026,3812.0,3811.4,0.60651798]
[1641197030750,4.79451505,3812.0,3811.9,0.88304626]
[1641197031846,4.79451505,3812.0,3811.6,1.17732354]
[1641197032047,3.3159026,3812.0,3811.7,1.17732354]
[1641197033047,4.79451505,3812.0,3811.9,0.8848453]
[1641197034149,4.79451505,3812.0,3811.9,1.1148363]
[1641197034349,4.79451505,3812.0,3811.9,0.8848453]
[1641197034550,4.79451505,3812.0,3811.7,1.17732354]
[1641197034750,2.78972505,3812.0,3811.7,1.17732354]
[1641197034950,1.3111126,3812.0,3811.7,1.17732354]
[1641197035251,2.00479,3811.8,3811.7,1.17732354]
[1641197035950,2.00479,3811.8,3811.7,1.40731454]
[1641197036151,2.00479,3811.8,3811.7,1.17732354]
[1641197036851,2.00479,3811.8,3811.7,1.40731454]
[1641197037057,2.00479,3811.8,3811.7,1.17732354]
[1641197038654,2.00479,3811.8,3811.7,1.40731454]
[1641197038854,2.00479,3811.8,3811.7,1.17732354]
[1641197039554,2.00479,3811.8,3811.7,1.7839744]
[1641197040355,2.00479,3811.8,3811.7,2.0139654]
[1641197040958,2.00479,3811.8,3811.7,0.83664186]
[1641197041257,2.00479,3811.8,3811.4,0.60665086]
[1641197041858,2.00479,3811.8,3811.7,0.60665086]
[1641197042058,2.00479,3811.8,3811.5,0.60665086]
[1641197042460,2.00479,3811.8,3811.4,0.60665086]
[1641197042661,0.89198803,3811.6,3811.4,0.60665086]
[1641197042863,0.89198803,3811.6,3811.3,0.5477]
[1641197043064,0.89198803,3811.6,3811.4,0.229991]
[1641197043363,0.89198803,3811.6,3811.4,0.830791]
[1641197043964,1.60676945,3812.1,3811.4,0.830791]
[1641197043965,1.47861245,3812.1,3811.4,0.830791]
[1641197044365,1.47861245,3812.1,3811.7,5.24694276]
[1641197044569,1.47861245,3812.1,3811.8,0.128157]
[1641197044772,1.47861245,3812.1,3811.9,0.229991]
[1641197046171,1.78094738,3812.4,3811.9,0.229991]
[1641197046374,1.47861245,3812.5,3811.9,0.229991]
[1641197046671,1.47861245,3812.5,3811.9,5.47658249]
[1641197047473,0.24435268,3812.5,3811.9,5.47658249]
[1641197047672,1.43349162,3812.5,3811.9,7.24371916]
[1641197049074,1.18913894,3812.5,3811.9,7.24371916]
[1641197049272,0.24435268,3812.6,3812.1,1.76713667]
[1641197049671,0.24435268,3812.6,3812.2,0.122356]
[1641197050072,0.24435268,3812.6,3812.1,1.76713667]
[1641197050273,1.05195268,3812.6,3812.1,1.76713667]
[1641197050472,1.05195268,3812.6,3812.1,1.89529367]
[1641197050872,1.05195268,3812.6,3812.1,1.76713667]
[1641197051476,0.24435268,3812.5,3812.1,1.76713667]
[1641197052072,0.24435268,3812.5,3812.4,1.17897496]
[1641197052873,0.24435268,3812.6,3812.3,1.17897496]
[1641197054172,0.128157,3812.5,3812.3,1.17897496]
[1641197056074,0.24435268,3812.4,3812.3,1.17897496]
[1641197056772,0.128157,3812.5,3812.3,1.17897496]
[1641197058174,0.128157,3812.5,3812.3,1.40896596]
[1641197058373,1.47861245,3812.6,3812.3,1.40896596]
[1641197058574,0.24435268,3812.4,3812.3,1.40896596]
[1641197059175,1.47861245,3812.7,3812.3,0.229991]
[1641197060075,1.47861245,3812.7,3812.4,0.78690261]
[1641197060275,1.47861245,3812.7,3812.5,0.229991]
[1641197060477,1.72296513,3812.9,3812.6,1.18125852]
[1641197061077,1.72296513,3812.9,3812.7,0.229991]
[1641197061279,1.72296513,3812.9,3812.6,1.18125852]
[1641197063183,1.72296513,3812.9,3812.7,0.229991]
[1641197064588,1.72296513,3812.9,3812.6,1.18125852]
[1641197064886,1.72296513,3812.9,3812.7,0.229991]
[1641197065488,1.72296513,3812.9,3812.6,1.18125852]
[1641197065687,1.72296513,3812.9,3812.7,0.229991]
[1641197068291,1.72296513,3812.9,3812.6,1.18125852]
[1641197068791,0.24435268,3812.9,3812.7,1.18125852]
[1641197070092,0.24435268,3812.8,3812.7,1.41124952]
[1641197070295,1.18893833,3812.7,3812.6,1.18125852]
[1641197070893,1.18893833,3812.7,3812.6,1.41124952]
[1641197071193,1.18893833,3812.7,3812.6,1.18125852]
[1641197071593,2.2409,3812.7,3812.0,1.76713667]
[1641197071794,1.31096993,3812.4,3812.0,1.76713667]
[1641197071995,0.128157,3812.3,3812.0,1.76713667]
[1641197073296,0.24435268,3812.2,3812.1,0.229991]
[1641197073595,0.24435268,3812.2,3811.8,2.132947]
[1641197074495,0.24435268,3812.3,3811.8,2.132947]
[1641197075095,0.24435268,3812.3,3811.8,2.801347]
[1641197075695,0.24435268,3812.3,3811.9,0.61701224]
[1641197075897,1.47861245,3812.5,3812.0,0.88345332]
[1641197076098,0.88891226,3812.6,3812.0,0.88345332]
[1641197076802,1.01706926,3812.7,3812.1,0.88345332]
[1641197079005,1.01706926,3812.7,3812.0,0.88345332]
[1641197079006,0.88891226,3812.6,3812.0,0.88345332]
[1641197081105,1.01706926,3812.7,3812.1,0.88345332]
[1641197081307,1.01706926,3812.7,3812.1,1.62565332]
[1641197081906,0.88891226,3812.7,3812.1,1.62565332]
[1641197082605,1.01706926,3812.7,3812.1,1.62565332]
[1641197083808,0.128157,3812.7,3812.2,0.88345332]
[1641197085805,0.88891226,3812.8,3812.2,0.88345332]
[1641197086207,0.88891226,3812.7,3812.1,0.88345332]
[1641197086807,1.01706926,3812.8,3812.2,0.88345332]
[1641197089009,1.01706926,3812.8,3812.2,1.39165332]
[1641197089209,0.128157,3812.8,3812.2,1.39165332]
[1641197089611,0.128157,3812.8,3812.7,0.88345332]
[1641197089813,1.60676945,3812.8,3812.7,0.88345332]
[1641197090714,1.60676945,3812.8,3812.7,1.11344432]
[1641197090914,1.47861245,3812.8,3812.7,1.11344432]
[1641197091118,1.47861245,3812.8,3812.7,0.88345332]
[1641197092618,1.47861245,3812.8,3812.5,1.17759438]
[1641197093017,2.21221245,3812.8,3812.5,1e-08]
[1641197094624,2.81083556,3812.6,3811.9,1.76713667]
[1641197095328,2.81083556,3812.6,3812.4,0.8866068]
[1641197095725,1.31093556,3812.6,3812.5,0.229991]
[1641197096126,1.31093556,3812.6,3812.3,0.8866068]
[1641197096327,3.09188294,3812.6,3812.3,0.8866068]
[1641197096727,3.09188294,3812.6,3812.4,0.229991]
[1641197097128,3.09188294,3812.6,3812.3,0.8866068]
[1641197097529,1.31093556,3812.6,3812.2,0.8866068]
[1641197100231,1.48450827,3812.7,3812.2,0.8866068]
[1641197100433,1.48450827,3812.7,3812.2,1.5935068]
[1641197100832,1.48450827,3812.7,3812.3,0.122356]
[1641197101031,0.128157,3812.9,3812.3,0.122356]
[1641197101032,1.61266527,3812.9,3812.4,0.8866068]
[1641197101431,1.48450827,3812.9,3812.4,0.8866068]
[1641197101832,3.48929827,3813.0,3812.5,0.8866068]
[1641197102033,3.48929827,3813.0,3812.5,1.50462096]
[1641197102232,3.48929827,3813.0,3812.5,0.8866068]
[1641197103038,3.48929827,3813.0,3812.6,1.5044971]
[1641197103236,3.48929827,3813.0,3812.7,0.128157]
[1641197103435,3.48929827,3813.0,3812.8,0.229991]
[1641197103936,1.48450827,3813.0,3812.8,0.229991]
[1641197104137,1.31072421,3813.1,3812.8,1.1165978]
[1641197105438,0.29370571,3813.0,3812.9,0.8866068]
[1641197106038,0.29370571,3813.0,3812.9,1.50426675]
[1641197106538,1.78094738,3813.6,3812.9,1.50426675]
[1641197106739,1.78094738,3813.6,3813.0,5.47509437]
[1641197107039,1.18731704,3813.2,3813.0,6.87225432]
[1641197107239,1.704e-05,3813.2,3813.0,6.87225432]
[1641197107438,1.4841463,3813.5,3813.0,6.87225432]
[1641197107839,1.4841463,3813.5,3813.4,2.00479]
[1641197108040,1.78094738,3813.8,3813.4,2.234781]
[1641197108242,1.31038757,3814.3,3813.4,2.234781]
[1641197108243,0.128157,3813.9,3813.4,2.234781]
[1641197108441,3.09133495,3814.3,3813.4,2.485294]
[1641197108641,3.09133495,3814.3,3813.4,2.362938]
[1641197109043,3.09133495,3814.3,3813.4,2.485294]
[1641197109243,3.09133495,3814.3,3813.6,0.88274993]
[1641197110245,0.128157,3814.2,3813.6,0.88274993]
[1641197112047,3.09133495,3814.3,3813.6,0.88274993]
[1641197112448,1.43854457,3814.3,3813.6,0.88274993]
[1641197113350,1.43854457,3814.3,3813.7,0.88274993]
[1641197113847,1.43854457,3814.3,3813.9,2.00479]
[1641197114248,1.31038757,3814.3,3813.9,2.80399]
[1641197115950,2.79412885,3814.3,3813.9,2.80399]
[1641197118052,1.1870228,3814.0,3813.9,2.80399]
[1641197118249,1.1870228,3814.0,3813.9,3.033981]
[1641197118852,1.1870228,3814.0,3813.9,2.80399]
[1641197119050,1.1870228,3814.0,3813.9,3.033981]
[1641197119651,1.7185228,3814.0,3813.9,2.00479]
[1641197119851,1.7185228,3814.0,3813.9,2.234781]
[1641197120650,1.7185228,3814.0,3813.9,2.00479]
[1641197120850,0.5315,3814.0,3813.9,2.00479]
[1641197121051,1.48374128,3814.2,3813.9,2.234781]
[1641197121350,1.48374128,3814.2,3813.9,2.00479]
[1641197121951,1.48374128,3814.2,3814.0,0.229991]
[1641197122151,1.48374128,3814.2,3813.9,2.00479]
[1641197123951,1.48374128,3814.2,3814.0,0.229991]
[1641197124154,1.48374128,3814.2,3813.9,2.00479]
[1641197125055,1.48374128,3814.2,3814.0,0.229991]
[1641197125655,1.48374128,3814.2,3813.9,2.00479]
[1641197126159,1.48374128,3814.3,3813.9,2.00479]
[1641197126955,2.98364128,3814.3,3813.9,2.00479]
[1641197127157,1.4999,3814.3,3813.9,2.00479]
[1641197129159,1.43852912,3814.4,3813.9,2.00479]
[1641197129361,2.32447641,3814.4,3813.9,2.00479]
[1641197129960,1.43852912,3814.4,3813.9,2.00479]
[1641197130363,1.4999,3814.2,3813.9,2.00479]
[1641197131764,2.32447641,3814.4,3813.9,2.00479]
[1641197132067,1.4999,3814.0,3813.4,2.00479]
[1641197132263,2.81059329,3813.5,3812.8,22.50164993]
[1641197132464,0.128157,3813.4,3812.8,0.88274993]
[1641197132662,0.128157,3813.4,3812.7,0.88274993]
[1641197133564,1.31079637,3813.1,3812.7,0.88274993]
[1641197133767,0.128157,3813.4,3812.7,0.88274993]
[1641197133964,2.00479,3813.2,3812.7,0.88274993]
[1641197134571,2.00479,3813.2,3812.6,0.128157]
[1641197135466,2.00479,3813.2,3812.4,2.00479]
[1641197137871,2.00479,3813.2,3812.5,0.128157]
[1641197138072,2.00479,3813.2,3812.5,0.952657]
[1641197138272,2.00479,3813.6,3812.8,2.00479]
[1641197138472,0.128157,3813.5,3812.9,0.122356]
[1641197138673,0.128157,3813.5,3812.8,2.00479]
[1641197139072,0.128157,3813.5,3812.9,0.80534716]
[1641197140574,0.128157,3813.5,3812.8,2.00479]
[1641197141774,0.128157,3813.5,3812.9,0.128157]
[1641197142177,0.5793,3814.4,3813.4,2.00479]
[1641197142381,1.31045283,3814.1,3813.4,2.00479]
[1641197142578,0.128157,3814.0,3813.4,2.00479]
[1641197146283,1.4999,3813.9,3812.0,21.81424033]
[1641197146484,1.4999,3813.9,3812.3,0.88274993]
[1641197146684,1.4999,3813.9,3812.3,1.00510593]
[1641197146883,0.724757,3814.0,3812.3,1.00510593]
[1641197147284,1.31058679,3813.7,3812.4,0.80576783]
[1641197148283,1.31058679,3813.7,3813.0,2.00479]
[1641197148484,1.31058679,3813.7,3813.1,0.128157]
[1641197149086,1.31058679,3813.7,3813.1,0.93381329]
[1641197153692,2.00479,3813.9,3813.1,0.93381329]
[1641197154192,3.31531839,3813.9,3813.1,0.80565629]
[1641197154393,0.128157,3814.0,3813.1,0.80565629]
[1641197154596,0.128157,3814.0,3813.2,0.128157]
[1641197154795,1.31052839,3813.9,3813.2,0.128157]
[1641197155396,1.31052839,3813.9,3813.1,0.80565629]
[1641197156198,1.31052839,3813.9,3813.6,2.00479]
[1641197156497,1.31052839,3813.9,3813.7,0.229991]
[1641197156897,1.31052839,3813.9,3813.6,2.132947]
[1641197157499,0.25586348,3813.8,3813.6,2.132947]
[1641197157699,1.17912744,3813.7,3813.6,2.132947]
[1641197158701,1.43499092,3813.8,3813.6,3.24568793]
[1641197159904,1.43499092,3813.8,3813.6,3.11753093]
[1641197160106,1.43499092,3813.8,3813.6,2.88753993]
[1641197160305,1.43499092,3813.8,3813.7,0.88274993]
[1641197160506,0.25586348,3813.8,3813.7,0.88274993]
[1641197164007,1.43499092,3813.8,3813.6,2.88753993]
[1641197165409,1.17912744,3813.8,3813.6,2.88753993]
[1641197166114,1.17912744,3813.8,3813.7,0.229991]
[1641197166312,1.17912744,3813.8,3813.6,2.88753993]
[1641197167814,1.17912744,3813.8,3813.6,3.11753093]
[1641197168717,1.17912744,3813.8,3813.6,2.88753993]
[1641197172423,1.17912744,3813.8,3813.7,0.229991]
[1641197173223,1.17912744,3813.8,3813.6,2.88753993]
[1641197173624,1.17912744,3813.7,3813.6,2.00479]
[1641197175227,1.17912744,3813.7,3813.6,2.234781]
[1641197175628,1.17912744,3813.8,3813.6,2.88753993]
[1641197178037,1.17912744,3813.8,3813.6,3.11753093]
[1641197178236,1.17912744,3813.8,3813.6,2.88753993]
[1641197179437,2.48969362,3813.8,3813.6,2.88753993]
[1641197181242,0.25586348,3813.7,3813.6,2.88753993]
[1641197181642,0.25586348,3813.7,3813.6,3.11753093]
[1641197182042,1.43499092,3813.7,3813.6,3.11753093]
[1641197182238,1.43499092,3813.7,3813.6,2.88753993]
[1641197183940,0.25586348,3813.7,3813.6,3.11753093]
[1641197184143,0.25586348,3813.7,3813.6,2.88753993]
[1641197185541,0.25586348,3813.7,3813.6,0.88274993]
[1641197185744,1.43499092,3813.7,3813.6,0.88274993]
[1641197186844,1.43499092,3813.7,3813.6,1.11274093]
[1641197187243,0.25586348,3813.7,3813.3,1.30476817]
[1641197187444,0.25586348,3813.7,3813.4,1.17661117]
[1641197187643,0.25586348,3813.7,3813.4,1.98325505]
[1641197187845,0.25586348,3813.7,3813.5,0.229991]
[1641197188046,0.25586348,3813.7,3813.5,0.80664388]
[1641197188447,1.18835793,3813.6,3813.5,1.98325505]
[1641197189349,1.18835793,3813.6,3813.5,2.21324605]
[1641197189549,1.18835793,3813.6,3813.5,1.98325505]
[1641197190448,1.18835793,3813.6,3813.5,2.21324605]
[1641197191149,1.18835793,3813.6,3813.5,1.98325505]
[1641197193052,1.18835793,3813.6,3813.5,2.21324605]
[1641197193655,1.18835793,3813.6,3813.5,1.98325505]
[1641197198759,1.18835793,3813.6,3813.5,2.21324605]
[1641197199958,0.25586348,3813.7,3813.5,2.21324605]
[1641197200163,0.25586348,3813.7,3813.5,1.03663488]
[1641197200560,0.25586348,3813.7,3813.6,0.80664388]
[1641197200761,0.25586348,3813.7,3813.6,2.81143388]
[1641197200959,0.25586348,3813.7,3813.6,2.00479]
[1641197201760,0.25586348,3813.7,3813.6,2.81143388]
[1641197204162,0.25586348,3813.7,3813.6,3.04142488]
[1641197205764,0.25586348,3813.7,3813.6,2.81143388]
[1641197206364,1.31056618,3813.8,3813.6,2.81143388]
[1641197206564,1.31056618,3813.8,3813.7,0.229991]
[1641197206765,1.31056618,3813.8,3813.7,0.80664388]
[1641197207965,1.31056618,3813.8,3813.7,1.03663488]
[1641197208169,1.31056618,3813.8,3813.7,0.80664388]
[1641197208865,2.20046413,3813.8,3813.7,0.80664388]
[1641197210067,1.31056618,3813.8,3813.7,0.80664388]
[1641197211769,1.31056618,3813.8,3813.7,1.03663488]
[1641197216477,2.22621666,3815.1,3813.7,1.82483488]
[1641197216677,2.22621666,3815.1,3813.9,1.5]
[1641197216877,2.22621666,3815.1,3814.4,2.00479]
[1641197217082,2.22621666,3815.1,3814.4,2.485294]
[1641197217577,2.22621666,3815.1,3814.4,3.29193788]
[1641197218978,0.27944478,3815.0,3814.4,3.29193788]
[1641197219578,0.27944478,3815.0,3814.5,0.80664388]
[1641197219780,0.27944478,3815.0,3814.5,1.57414388]
[1641197220183,0.27944478,3815.4,3814.5,1.57414388]
[1641197220581,0.27944478,3815.4,3814.6,0.80664388]
[1641197221983,1.76318606,3815.5,3814.6,0.80664388]
[1641197223485,1.76318606,3815.5,3814.5,0.80664388]
[1641197223685,1.76318606,3815.5,3814.4,2.255303]
[1641197223986,1.76318606,3815.5,3814.5,0.70852282]
[1641197224989,1.48374128,3815.5,3814.5,0.70852282]
[1641197225391,1.48374128,3815.5,3814.4,0.95903582]
[1641197225591,1.48374128,3815.5,3814.9,2.00479]
[1641197225794,0.128157,3815.5,3814.9,2.00479]
[1641197226994,0.27944478,3815.4,3814.9,2.00479]
[1641197227594,1.18580361,3815.3,3814.9,2.00479]
[1641197228394,1.18580361,3815.3,3814.6,1.17121613]
[1641197229197,1.18580361,3815.3,3814.5,1.17121613]
[1641197229595,1.18580361,3815.3,3814.9,2.00479]
[1641197231897,0.128157,3815.5,3814.9,2.00479]
[1641197236399,0.28403898,3815.4,3814.9,2.00479]
[1641197237100,0.88678344,3815.3,3814.9,2.00479]
[1641197238202,0.88678344,3815.3,3814.9,2.132947]
[1641197239004,0.88678344,3815.3,3814.9,2.00479]
[1641197239406,0.88678344,3815.4,3814.9,2.00479]
[1641197239606,1.4999,3815.0,3814.5,2.00479]
[1641197239806,2.00479,3814.6,3814.2,0.87639276]
[1641197240005,0.128157,3814.5,3814.2,0.87639276]
[1641197240305,11.428157,3814.5,3814.1,0.87639276]
[1641197240506,0.128157,3814.5,3814.1,0.87639276]
[1641197241207,1.628057,3814.5,3814.1,0.87639276]
[1641197241405,12.928057,3814.5,3813.8,1.17121613]
[1641197241806,2.00479,3813.9,3813.8,1.17121613]
[1641197242009,2.00479,3813.9,3813.2,18.82801613]
[1641197242406,2.00479,3813.9,3813.2,18.95617313]
[1641197243309,2.00479,3813.9,3813.3,0.70848868]
[1641197248214,14.80469,3813.9,3813.3,0.70848868]
[1641197248415,2.00479,3813.9,3813.3,0.70848868]
[1641197248714,2.00479,3813.9,3813.0,1.17121613]
[1641197249415,2.00479,3813.9,3812.9,2.00479]
[1641197249817,13.30479,3813.9,3812.9,2.00479]
[1641197250014,2.00479,3813.9,3812.9,2.00479]
[1641197251217,13.30479,3813.9,3812.9,2.00479]
[1641197251615,14.80469,3813.9,3812.6,1.17121613]
[1641197252217,2.00479,3813.0,3812.6,1.17121613]
[1641197252419,2.00479,3813.0,3812.7,0.70888342]
[1641197252618,2.00479,3813.0,3812.8,0.229991]
[1641197254823,2.00479,3813.0,3812.6,0.70888342]
[1641197260027,2.00479,3813.0,3812.5,0.70888342]
[1641197261231,2.00479,3813.0,3812.5,0.83704042]
[1641197261428,2.00479,3813.0,3812.5,0.128157]
[1641197262333,2.00479,3813.0,3812.5,1.00593917]
[1641197263433,14.80469,3813.0,3812.5,0.87778217]
[1641197263630,1.4999,3812.7,3811.7,20.60792667]
[1641197263833,1.4999,3812.7,3811.7,3.77192667]
[1641197264229,2.00479,3812.4,3811.8,0.66989215]
[1641197264432,0.128157,3812.3,3811.8,0.66989215]
[1641197264833,0.128157,3812.3,3811.7,3.77192667]
[1641197266133,0.128157,3812.3,3811.7,2.00479]
[1641197267236,0.128157,3812.3,3811.0,1.76713667]
[1641197267435,0.128157,3812.3,3810.9,17.7069]
[1641197268237,2.00479,3811.7,3811.0,0.66969589]
[1641197268536,2.00479,3811.7,3811.1,0.128157]
[1641197270036,2.00479,3811.7,3811.1,0.79785289]
[1641197270338,2.00479,3811.7,3811.1,0.128157]
[1641197270537,2.00479,3811.7,3810.9,0.66969589]
[1641197270738,2.00479,3811.7,3810.8,2.00479]
[1641197271139,2.00479,3811.7,3810.9,0.79761834]
[1641197274449,2.00479,3811.7,3810.9,1.96673254]
[1641197274950,2.00479,3811.7,3810.9,1.2972712]
[1641197275149,2.00479,3811.7,3811.0,1.5]
[1641197275552,2.00479,3811.7,3810.9,1.2972712]
[1641197276851,2.00479,3811.7,3811.0,1.5]
[1641197277653,2.00479,3811.7,3811.0,2.6691142]
[1641197280155,2.00479,3811.7,3811.0,1.1691142]
[1641197280354,2.00479,3811.7,3811.1,1.5]
[1641197280756,2.00479,3811.7,3811.0,1.1691142]
[1641197282356,2.00479,3811.7,3810.9,1.2972712]
[1641197284057,2.00479,3811.7,3811.1,0.8754259]
[1641197285860,2.00479,3811.7,3811.0,2.3754259]
[1641197286057,2.00479,3811.7,3811.0,3.52376704]
[1641197286359,2.00479,3811.7,3811.1,0.8754259]
[1641197286558,0.128157,3812.3,3811.2,2.00479]
[1641197287661,0.128157,3812.3,3811.2,2.8802159]
[1641197288658,0.128157,3812.3,3811.2,2.00479]
[1641197289459,0.128157,3812.3,3811.2,2.8802159]
[1641197291966,0.128157,3812.3,3811.3,0.122356]
[1641197292172,4.00958,3812.4,3811.3,0.659156]
[1641197292566,4.00958,3812.4,3811.8,0.8754259]
[1641197292769,0.128157,3812.3,3811.8,0.8754259]
[1641197298776,0.128157,3812.3,3811.7,0.8754259]
[1641197299579,11.428157,3812.3,3811.7,0.8754259]
[1641197299781,12.038257,3812.3,3811.7,0.8754259]
[1641197300581,12.038257,3812.3,3811.6,0.8754259]
[1641197300782,2.00479,3811.9,3811.6,0.8754259]
[1641197301684,2.00479,3811.9,3811.4,0.8754259]
[1641197305991,2.00479,3811.9,3811.5,0.8754259]
[1641197307993,13.30479,3811.9,3811.5,0.8754259]
[1641197308394,2.00479,3811.9,3811.5,0.8754259]
[1641197308592,13.30479,3811.9,3811.5,0.8754259]
[1641197310092,13.30479,3811.9,3811.2,3.1739042]
[1641197310093,13.30479,3811.9,3811.4,0.8754259]
[1641197311294,13.30479,3811.9,3811.2,2.8802159]
[1641197311507,1.4999,3811.4,3810.8,2.00479]
[1641197311693,1.17190066,3811.8,3810.4,1.76713667]
[1641197311694,1.4999,3810.9,3810.4,1.76713667]
[1641197311895,11.3,3810.8,3810.4,1.76713667]
[1641197312795,2.1715,3810.9,3809.4,17.6435]
[1641197312796,2.00479,3810.5,3810.0,1.76713667]
[1641197313895,0.128157,3810.4,3810.0,1.76713667]
[1641197314098,2.00479,3810.5,3810.0,1.76713667]
[1641197314296,2.00479,3810.5,3810.0,0.6971]
[1641197316001,2.132947,3810.5,3810.0,0.6971]
[1641197316201,2.132947,3810.5,3809.5,0.74345933]
[1641197317605,2.132947,3810.5,3809.4,2.00479]